[Event "Titled Tuesday Blitz November 22 Late 2022"]
[White "Aghasiyev, Kamal"]
[Black "Ardila, Oscar Humberto"]
[WhiteFideId "13402854"]
[BlackFideId "4404742"]
[WhiteElo "2341"]
[BlackElo "1959"]
[Result "1-0"]
[Round "03"]
[TimeControl "180+1"]
[Date "2022.11.23"]
[WhiteClock "0:00:16"]
[BlackClock "0:00:06"]

1. d4 {[%clk 0:02:59]}  Nf6 {[%clk 0:02:59]} 2. c4 {[%clk 0:02:58]}  e6 {[%clk 0:03:00]} 3. Nf3 {[%clk 0:02:57]}  Bb4+ {[%clk 0:03:00]} 4. Bd2 {[%clk 0:02:56]}  Qe7 {[%clk 0:03:00]} 5. g3 {[%clk 0:02:55]}  O-O {[%clk 0:03:00]} 6. Bg2 {[%clk 0:02:55]}  Na6 {[%clk 0:02:54]} 7. O-O {[%clk 0:02:53]}  c5 {[%clk 0:02:52]} 8. Bg5 {[%clk 0:02:35]}  h6 {[%clk 0:02:51]} 9. Bxf6 {[%clk 0:02:24]}  Qxf6 {[%clk 0:02:50]} 10. a3 {[%clk 0:02:24]}  Ba5 {[%clk 0:02:43]} 11. e4 {[%clk 0:02:24]}  cxd4 {[%clk 0:02:42]} 12. e5 {[%clk 0:02:24]}  Qf5 {[%clk 0:02:31]} 13. b4 {[%clk 0:02:23]}  Bc7 {[%clk 0:02:30]} 14. Re1 {[%clk 0:02:21]}  d3 {[%clk 0:02:27]} 15. Nc3 {[%clk 0:02:18]}  d5 {[%clk 0:02:21]} 16. cxd5 {[%clk 0:02:16]}  exd5 {[%clk 0:02:21]} 17. Nxd5 {[%clk 0:02:16]}  Qd7 {[%clk 0:02:11]} 18. Qxd3 {[%clk 0:02:12]}  Bd8 {[%clk 0:01:53]} 19. Rad1 {[%clk 0:02:09]}  Qa4 {[%clk 0:01:52]} 20. Nd4 {[%clk 0:01:51]}  Bg4 {[%clk 0:01:48]} 21. Rc1 {[%clk 0:01:48]}  Rc8 {[%clk 0:01:33]} 22. Rxc8 {[%clk 0:01:38]}  Bxc8 {[%clk 0:01:34]} 23. Nb5 {[%clk 0:01:31]}  Be6 {[%clk 0:01:24]} 24. Nd6 {[%clk 0:01:26]}  Nc7 {[%clk 0:01:04]} 25. Nxb7 {[%clk 0:01:19]}  Nxd5 {[%clk 0:00:59]} 26. Bxd5 {[%clk 0:01:19]}  Bxd5 {[%clk 0:00:58]} 27. Qxd5 {[%clk 0:01:19]}  Bb6 {[%clk 0:00:57]} 28. Qf3 {[%clk 0:01:15]}  Qc2 {[%clk 0:00:32]} 29. Nd6 {[%clk 0:01:10]}  Bd4 {[%clk 0:00:30]} 30. Nf5 {[%clk 0:01:05]}  Bb6 {[%clk 0:00:26]} 31. Re2 {[%clk 0:01:00]}  Qc1+ {[%clk 0:00:26]} 32. Kg2 {[%clk 0:01:00]}  Re8 {[%clk 0:00:24]} 33. h4 {[%clk 0:00:55]}  Re6 {[%clk 0:00:20]} 34. a4 {[%clk 0:00:53]}  a5 {[%clk 0:00:20]} 35. bxa5 {[%clk 0:00:53]}  Bc5 {[%clk 0:00:18]} 36. Qe4 {[%clk 0:00:50]}  Qc3 {[%clk 0:00:16]} 37. a6 {[%clk 0:00:41]}  Qa5 {[%clk 0:00:14]} 38. Rb2 {[%clk 0:00:36]}  Qxa6 {[%clk 0:00:12]} 39. Rb8+ {[%clk 0:00:35]}  Bf8 {[%clk 0:00:10]} 40. Qb4 {[%clk 0:00:33]}  Qc6+ {[%clk 0:00:06]} 41. Kh2 {[%clk 0:00:32]}  Re8 {[%clk 0:00:07]} 42. Qb5 {[%clk 0:00:23]}  Qxb5 {[%clk 0:00:06]} 43. Rxb5 {[%clk 0:00:22]}  g6 {[%clk 0:00:06]} 44. Ne3 {[%clk 0:00:18]}  Ra8 {[%clk 0:00:06]} 45. a5 {[%clk 0:00:18]}  Ra6 {[%clk 0:00:07]} 46. Kg2 {[%clk 0:00:17]}  Bg7 {[%clk 0:00:08]} 47. Nc4 {[%clk 0:00:17]}  Re6 {[%clk 0:00:07]} 48. f4 {[%clk 0:00:15]}  g5 {[%clk 0:00:07]} 49. hxg5 {[%clk 0:00:15]}  hxg5 {[%clk 0:00:08]} 50. Kf3 {[%clk 0:00:16]}  gxf4 {[%clk 0:00:08]} 51. gxf4 {[%clk 0:00:17]}  Rh6 {[%clk 0:00:08]} 52. Ke4 {[%clk 0:00:16]}  Rh1 {[%clk 0:00:08]} 53. a6 {[%clk 0:00:16]}  Ra1 {[%clk 0:00:09]} 54. Ra5 {[%clk 0:00:16]}  Re1+ {[%clk 0:00:08]} 55. Kf5 {[%clk 0:00:16]}  Rc1 {[%clk 0:00:05]} 56. a7 {[%clk 0:00:16]}  Rxc4 {[%clk 0:00:05]} 57. a8=Q+ {[%clk 0:00:16]}  Kh7 {[%clk 0:00:06]} 58. Ra1 {[%clk 0:00:16]}  Rc2 {[%clk 0:00:06]} 59. Rh1+ {[%clk 0:00:15]}  Bh6 {[%clk 0:00:06]} 60. Rxh6+ {[%clk 0:00:16]}  Kxh6 {[%clk 0:00:06]} 61. Qh8# {[%clk 0:00:16]} 1-0


[Site "https://www.chess.com"]

[Event "Titled Tuesday Blitz November 22 Late 2022"]
[White "Antonova, Nadezhda"]
[Black "Urbina Perez, Juan Antonio"]
[WhiteFideId "14700182"]
[BlackFideId "2217368"]
[WhiteElo "1813"]
[BlackElo "2197"]
[Result "0-1"]
[Round "03"]
[TimeControl "180+1"]
[Date "2022.11.23"]
[WhiteClock "0:01:04"]
[BlackClock "0:01:41"]

1. Nf3 {[%clk 0:02:54]}  d5 {[%clk 0:02:58]} 2. b3 {[%clk 0:02:54]}  Bf5 {[%clk 0:02:57]} 3. Bb2 {[%clk 0:02:54]}  e6 {[%clk 0:02:57]} 4. g3 {[%clk 0:02:55]}  Nf6 {[%clk 0:02:57]} 5. Bg2 {[%clk 0:02:56]}  h6 {[%clk 0:02:57]} 6. O-O {[%clk 0:02:56]}  c6 {[%clk 0:02:57]} 7. d3 {[%clk 0:02:57]}  Be7 {[%clk 0:02:57]} 8. Nbd2 {[%clk 0:02:58]}  O-O {[%clk 0:02:57]} 9. c4 {[%clk 0:02:58]}  Nbd7 {[%clk 0:02:56]} 10. Qc2 {[%clk 0:02:58]}  Rc8 {[%clk 0:02:55]} 11. a3 {[%clk 0:02:58]}  a5 {[%clk 0:02:54]} 12. Ne5 {[%clk 0:02:57]}  Nxe5 {[%clk 0:02:53]} 13. Bxe5 {[%clk 0:02:58]}  Nd7 {[%clk 0:02:53]} 14. Bc3 {[%clk 0:02:58]}  Bf6 {[%clk 0:02:53]} 15. b4 {[%clk 0:02:58]}  Bxc3 {[%clk 0:02:52]} 16. Qxc3 {[%clk 0:02:59]}  axb4 {[%clk 0:02:52]} 17. axb4 {[%clk 0:02:59]}  Ra8 {[%clk 0:02:53]} 18. Nb3 {[%clk 0:02:51]}  Qe7 {[%clk 0:02:48]} 19. Na5 {[%clk 0:02:44]}  Nf6 {[%clk 0:02:43]} 20. Ra3 {[%clk 0:02:39]}  Ra6 {[%clk 0:02:41]} 21. Rfa1 {[%clk 0:02:39]}  Qc7 {[%clk 0:02:30]} 22. Nb3 {[%clk 0:02:19]}  Rxa3 {[%clk 0:02:27]} 23. Rxa3 {[%clk 0:02:17]}  Rb8 {[%clk 0:02:20]} 24. c5 {[%clk 0:01:54]}  b6 {[%clk 0:02:16]} 25. Nd4 {[%clk 0:01:47]}  bxc5 {[%clk 0:02:10]} 26. Qxc5 {[%clk 0:01:40]}  Qb6 {[%clk 0:02:02]} 27. Nxc6 {[%clk 0:01:24]}  Qxc5 {[%clk 0:01:43]} 28. bxc5 {[%clk 0:01:12]}  Rb1+ {[%clk 0:01:42]} 29. Bf1 {[%clk 0:01:04]}  Bh3 {[%clk 0:01:41]} 0-1


[Site "https://www.chess.com"]

[Event "Titled Tuesday Blitz November 22 Late 2022"]
[White "Arbunic Castro, Giovanna"]
[Black "Fernandez Siles, Luis"]
[WhiteFideId "3400549"]
[BlackFideId "2209420"]
[WhiteElo "1977"]
[BlackElo "2186"]
[Result "0-1"]
[Round "03"]
[TimeControl "180+1"]
[Date "2022.11.23"]
[WhiteClock "0:00:17"]
[BlackClock "0:01:08"]

1. e4 {[%clk 0:02:59]}  c5 {[%clk 0:02:59]} 2. g3 {[%clk 0:02:57]}  d5 {[%clk 0:02:58]} 3. exd5 {[%clk 0:02:56]}  Qxd5 {[%clk 0:02:59]} 4. Nf3 {[%clk 0:02:55]}  Bg4 {[%clk 0:02:59]} 5. Bg2 {[%clk 0:02:55]}  Qe6+ {[%clk 0:02:59]} 6. Kf1 {[%clk 0:02:54]}  Nc6 {[%clk 0:02:57]} 7. h3 {[%clk 0:02:53]}  Bh5 {[%clk 0:02:57]} 8. g4 {[%clk 0:02:53]}  Bg6 {[%clk 0:02:57]} 9. Nc3 {[%clk 0:02:46]}  Nf6 {[%clk 0:02:56]} 10. d4 {[%clk 0:02:41]}  O-O-O {[%clk 0:02:44]} 11. Be3 {[%clk 0:02:36]}  cxd4 {[%clk 0:02:24]} 12. Nxd4 {[%clk 0:02:25]}  Nxd4 {[%clk 0:02:16]} 13. Bxd4 {[%clk 0:02:24]}  Qc4+ {[%clk 0:02:15]} 14. Ne2 {[%clk 0:02:23]}  e5 {[%clk 0:02:07]} 15. b3 {[%clk 0:02:20]}  Qc7 {[%clk 0:02:01]} 16. c3 {[%clk 0:01:55]}  exd4 {[%clk 0:01:54]} 17. cxd4 {[%clk 0:01:54]}  Kb8 {[%clk 0:01:53]} 18. Rc1 {[%clk 0:01:53]}  Qb6 {[%clk 0:01:50]} 19. Qd2 {[%clk 0:01:48]}  Bd6 {[%clk 0:01:41]} 20. f4 {[%clk 0:01:21]}  Be4 {[%clk 0:01:39]} 21. Kf2 {[%clk 0:01:05]}  Rhe8 {[%clk 0:01:27]} 22. Ng3 {[%clk 0:00:59]}  Bxg2 {[%clk 0:01:22]} 23. Kxg2 {[%clk 0:00:58]}  Nd5 {[%clk 0:01:22]} 24. Rc4 {[%clk 0:00:29]}  Bxf4 {[%clk 0:01:16]} 25. Qd3 {[%clk 0:00:19]}  Re3 {[%clk 0:01:11]} 26. Nf5 {[%clk 0:00:17]}  Rxd3 {[%clk 0:01:08]} 0-1


[Site "https://www.chess.com"]

[Event "Titled Tuesday Blitz November 22 Late 2022"]
[White "Bach, Matthias"]
[Black "Toniutti, Ezio"]
[WhiteFideId "4603168"]
[BlackFideId "113034"]
[WhiteElo "2165"]
[BlackElo "2215"]
[Result "1-0"]
[Round "03"]
[TimeControl "180+1"]
[Date "2022.11.23"]
[WhiteClock "0:00:52"]
[BlackClock "0:00:47"]

1. d4 {[%clk 0:03:00]}  d5 {[%clk 0:02:58]} 2. c4 {[%clk 0:03:01]}  c6 {[%clk 0:02:58]} 3. Nc3 {[%clk 0:03:00]}  Nf6 {[%clk 0:02:58]} 4. Nf3 {[%clk 0:03:00]}  a6 {[%clk 0:02:55]} 5. g3 {[%clk 0:03:00]}  Bf5 {[%clk 0:02:55]} 6. Bg2 {[%clk 0:03:00]}  e6 {[%clk 0:02:55]} 7. O-O {[%clk 0:03:00]}  Be7 {[%clk 0:02:52]} 8. Nd2 {[%clk 0:03:00]}  O-O {[%clk 0:02:49]} 9. e4 {[%clk 0:03:00]}  dxe4 {[%clk 0:02:49]} 10. Ndxe4 {[%clk 0:03:00]}  Nbd7 {[%clk 0:02:49]} 11. Be3 {[%clk 0:02:58]}  Qa5 {[%clk 0:02:39]} 12. a3 {[%clk 0:02:54]}  Rad8 {[%clk 0:02:36]} 13. b4 {[%clk 0:02:51]}  Qc7 {[%clk 0:02:36]} 14. Qb3 {[%clk 0:02:39]}  Nxe4 {[%clk 0:02:29]} 15. Nxe4 {[%clk 0:02:39]}  Nf6 {[%clk 0:02:29]} 16. Nc5 {[%clk 0:02:26]}  Bd6 {[%clk 0:02:00]} 17. Rad1 {[%clk 0:02:17]}  h6 {[%clk 0:01:58]} 18. Rfe1 {[%clk 0:02:14]}  Bg4 {[%clk 0:01:57]} 19. Rd2 {[%clk 0:02:13]}  Bh5 {[%clk 0:01:55]} 20. Ne4 {[%clk 0:02:04]}  Be7 {[%clk 0:01:53]} 21. Nxf6+ {[%clk 0:01:55]}  Bxf6 {[%clk 0:01:53]} 22. d5 {[%clk 0:01:55]}  exd5 {[%clk 0:01:46]} 23. cxd5 {[%clk 0:01:54]}  cxd5 {[%clk 0:01:46]} 24. Rxd5 {[%clk 0:01:51]}  Rxd5 {[%clk 0:01:37]} 25. Qxd5 {[%clk 0:01:50]}  Qc3 {[%clk 0:01:21]} 26. Rc1 {[%clk 0:01:45]}  Qxa3 {[%clk 0:01:01]} 27. Qxh5 {[%clk 0:01:40]}  Qxb4 {[%clk 0:01:01]} 28. Qd5 {[%clk 0:01:24]}  b5 {[%clk 0:00:58]} 29. Rd1 {[%clk 0:01:13]}  Qa4 {[%clk 0:00:54]} 30. Bf3 {[%clk 0:01:06]}  b4 {[%clk 0:00:53]} 31. Bc5 {[%clk 0:00:59]}  Rd8 {[%clk 0:00:52]} 32. Qxd8+ {[%clk 0:00:55]}  Bxd8 {[%clk 0:00:52]} 33. Rxd8+ {[%clk 0:00:56]}  Kh7 {[%clk 0:00:50]} 34. Be4+ {[%clk 0:00:52]}  g6 {[%clk 0:00:47]} 35. Bd4 {[%clk 0:00:52]} 1-0


[Site "https://www.chess.com"]

[Event "Titled Tuesday Blitz November 22 Late 2022"]
[White "Baltaci, Ismail Tarik"]
[Black "Mendonca, Mateus Nakajo"]
[WhiteFideId "6365213"]
[BlackFideId "2110954"]
[WhiteElo "2331"]
[BlackElo "2310"]
[Result "0-1"]
[Round "03"]
[TimeControl "180+1"]
[Date "2022.11.23"]
[WhiteClock "0:02:22"]
[BlackClock "0:01:46"]

1. Nf3 {[%clk 0:03:00]}  d5 {[%clk 0:02:57]} 2. c4 {[%clk 0:03:01]}  e6 {[%clk 0:02:56]} 3. g3 {[%clk 0:03:00]}  c6 {[%clk 0:02:55]} 4. b3 {[%clk 0:03:00]}  Nf6 {[%clk 0:02:41]} 5. Bg2 {[%clk 0:03:00]}  Nbd7 {[%clk 0:02:41]} 6. O-O {[%clk 0:03:00]}  Bd6 {[%clk 0:02:40]} 7. Bb2 {[%clk 0:03:00]}  O-O {[%clk 0:02:39]} 8. e3 {[%clk 0:03:00]}  a6 {[%clk 0:02:32]} 9. Qe2 {[%clk 0:02:59]}  b5 {[%clk 0:02:30]} 10. d3 {[%clk 0:02:57]}  Bb7 {[%clk 0:02:29]} 11. Nc3 {[%clk 0:02:55]}  Qe7 {[%clk 0:02:27]} 12. Rfd1 {[%clk 0:02:54]}  e5 {[%clk 0:02:19]} 13. cxd5 {[%clk 0:02:53]}  cxd5 {[%clk 0:02:18]} 14. e4 {[%clk 0:02:34]}  d4 {[%clk 0:02:18]} 15. Nb1 {[%clk 0:02:33]}  Rac8 {[%clk 0:02:12]} 16. Nbd2 {[%clk 0:02:29]}  Rc2 {[%clk 0:02:08]} 17. Rab1 {[%clk 0:02:29]}  Ba3 {[%clk 0:01:55]} 18. Ne1 {[%clk 0:02:22]}  Rxb2 {[%clk 0:01:46]} 0-1


[Site "https://www.chess.com"]

[Event "Titled Tuesday Blitz November 22 Late 2022"]
[White "Baskakov, Egor"]
[Black "Gonzalez, Francisco Silva"]
[WhiteFideId "24197866"]
[BlackFideId "1512285"]
[WhiteElo "2791"]
[BlackElo "2489"]
[Result "1-0"]
[Round "03"]
[TimeControl "180+1"]
[Date "2022.11.23"]
[WhiteClock "0:01:23"]
[BlackClock "0:01:27"]

1. e4 {[%clk 0:03:00]}  e5 {[%clk 0:02:59]} 2. Nc3 {[%clk 0:03:00]}  Nf6 {[%clk 0:02:58]} 3. g3 {[%clk 0:03:00]}  Bc5 {[%clk 0:02:56]} 4. Bg2 {[%clk 0:03:00]}  Nc6 {[%clk 0:02:56]} 5. h3 {[%clk 0:03:00]}  a6 {[%clk 0:02:57]} 6. Nge2 {[%clk 0:03:01]}  d6 {[%clk 0:02:57]} 7. O-O {[%clk 0:03:01]}  Be6 {[%clk 0:02:54]} 8. Nd5 {[%clk 0:03:01]}  Bxd5 {[%clk 0:02:53]} 9. exd5 {[%clk 0:03:02]}  Nd4 {[%clk 0:02:53]} 10. Nxd4 {[%clk 0:03:00]}  Bxd4 {[%clk 0:02:53]} 11. d3 {[%clk 0:03:01]}  Ba7 {[%clk 0:02:53]} 12. Kh2 {[%clk 0:03:01]}  h6 {[%clk 0:02:50]} 13. c3 {[%clk 0:02:59]}  Qd7 {[%clk 0:02:48]} 14. f4 {[%clk 0:02:59]}  O-O-O {[%clk 0:02:45]} 15. Rb1 {[%clk 0:02:54]}  Rde8 {[%clk 0:02:40]} 16. Qc2 {[%clk 0:02:52]}  Qf5 {[%clk 0:02:34]} 17. fxe5 {[%clk 0:02:47]}  Qxe5 {[%clk 0:02:32]} 18. d4 {[%clk 0:02:46]}  Qe2 {[%clk 0:02:31]} 19. Qf5+ {[%clk 0:02:47]}  Kb8 {[%clk 0:02:29]} 20. Rf2 {[%clk 0:02:47]}  Qe7 {[%clk 0:02:19]} 21. Bd2 {[%clk 0:02:47]}  Qf8 {[%clk 0:02:07]} 22. a4 {[%clk 0:02:34]}  Re7 {[%clk 0:02:07]} 23. b4 {[%clk 0:02:34]}  Qe8 {[%clk 0:02:07]} 24. b5 {[%clk 0:02:32]}  axb5 {[%clk 0:02:07]} 25. axb5 {[%clk 0:02:24]}  Re2 {[%clk 0:02:07]} 26. Qf3 {[%clk 0:02:14]}  Re7 {[%clk 0:01:57]} 27. Bf4 {[%clk 0:02:06]}  Re1 {[%clk 0:01:50]} 28. Rxe1 {[%clk 0:01:53]}  Qxe1 {[%clk 0:01:49]} 29. Ra2 {[%clk 0:01:53]}  Qb1 {[%clk 0:01:45]} 30. Re2 {[%clk 0:01:51]}  Qxb5 {[%clk 0:01:42]} 31. Qf2 {[%clk 0:01:43]}  Nxd5 {[%clk 0:01:33]} 32. Rb2 {[%clk 0:01:37]}  Qc4 {[%clk 0:01:34]} 33. Qf3 {[%clk 0:01:32]}  c6 {[%clk 0:01:26]} 34. Bxd6+ {[%clk 0:01:31]}  Ka8 {[%clk 0:01:27]} 35. Qxf7 {[%clk 0:01:24]}  Qxc3 {[%clk 0:01:27]} 36. Qxb7# {[%clk 0:01:23]} 1-0


[Site "https://www.chess.com"]

[Event "Titled Tuesday Blitz November 22 Late 2022"]
[White "Bazzano, Sebastian"]
[Black "Alexikov, Alexander"]
[WhiteFideId "104566"]
[BlackFideId "14103958"]
[WhiteElo "2219"]
[BlackElo "2222"]
[Result "0-1"]
[Round "03"]
[TimeControl "180+1"]
[Date "2022.11.23"]
[WhiteClock "0:00:01"]
[BlackClock "0:00:12"]

1. d4 {[%clk 0:02:59]}  Nf6 {[%clk 0:02:59]} 2. Bf4 {[%clk 0:02:59]}  g6 {[%clk 0:02:58]} 3. Nc3 {[%clk 0:02:59]}  Bg7 {[%clk 0:02:58]} 4. e4 {[%clk 0:02:59]}  d6 {[%clk 0:02:58]} 5. Qd2 {[%clk 0:02:58]}  h5 {[%clk 0:02:53]} 6. O-O-O {[%clk 0:02:57]}  e6 {[%clk 0:02:50]} 7. Nf3 {[%clk 0:02:50]}  Nc6 {[%clk 0:02:48]} 8. Bc4 {[%clk 0:02:13]}  Bd7 {[%clk 0:02:45]} 9. d5 {[%clk 0:02:07]}  exd5 {[%clk 0:02:42]} 10. exd5 {[%clk 0:02:04]}  Ne7 {[%clk 0:02:39]} 11. Rhe1 {[%clk 0:02:01]}  O-O {[%clk 0:02:37]} 12. Bh6 {[%clk 0:01:47]}  Bg4 {[%clk 0:02:33]} 13. Bxg7 {[%clk 0:01:45]}  Kxg7 {[%clk 0:02:32]} 14. Qf4 {[%clk 0:01:36]}  a6 {[%clk 0:02:02]} 15. h3 {[%clk 0:01:35]}  Bxf3 {[%clk 0:02:01]} 16. Qxf3 {[%clk 0:01:36]}  Qd7 {[%clk 0:01:53]} 17. Ne4 {[%clk 0:01:04]}  Nxe4 {[%clk 0:01:19]} 18. Rxe4 {[%clk 0:01:03]}  Ng8 {[%clk 0:01:10]} 19. Rde1 {[%clk 0:00:53]}  Rae8 {[%clk 0:01:03]} 20. g4 {[%clk 0:00:43]}  hxg4 {[%clk 0:00:54]} 21. hxg4 {[%clk 0:00:42]}  Nf6 {[%clk 0:00:46]} 22. Qc3 {[%clk 0:00:36]}  Rxe4 {[%clk 0:00:41]} 23. Rxe4 {[%clk 0:00:35]}  g5 {[%clk 0:00:33]} 24. Re3 {[%clk 0:00:20]}  Re8 {[%clk 0:00:29]} 25. Rf3 {[%clk 0:00:16]}  Re5 {[%clk 0:00:27]} 26. Qd2 {[%clk 0:00:03]}  Qxg4 {[%clk 0:00:18]} 27. Be2 {[%clk 0:00:03]}  Qe4 {[%clk 0:00:15]} 28. Re3 {[%clk 0:00:03]}  Qxd5 {[%clk 0:00:13]} 29. Rd3 {[%clk 0:00:01]}  Qe4 {[%clk 0:00:12]} 0-1


[Site "https://www.chess.com"]

[Event "Titled Tuesday Blitz November 22 Late 2022"]
[White "Bobkov, Vadim"]
[Black "Araujo Sanchez, Josue"]
[WhiteFideId "34110876"]
[BlackFideId "6416896"]
[WhiteElo "2730"]
[BlackElo "2556"]
[Result "1-0"]
[Round "03"]
[TimeControl "180+1"]
[Date "2022.11.23"]
[WhiteClock "0:00:04"]
[BlackClock "0:00:01"]

1. Nf3 {[%clk 0:03:00]}  d5 {[%clk 0:02:59]} 2. g3 {[%clk 0:03:01]}  Nf6 {[%clk 0:02:58]} 3. c4 {[%clk 0:03:01]}  dxc4 {[%clk 0:02:58]} 4. Na3 {[%clk 0:02:56]}  e6 {[%clk 0:02:51]} 5. Nxc4 {[%clk 0:02:56]}  c5 {[%clk 0:02:50]} 6. d3 {[%clk 0:02:54]}  Nc6 {[%clk 0:02:51]} 7. Bg2 {[%clk 0:02:54]}  Be7 {[%clk 0:02:51]} 8. O-O {[%clk 0:02:53]}  O-O {[%clk 0:02:51]} 9. Nfe5 {[%clk 0:02:50]}  Nxe5 {[%clk 0:02:25]} 10. Nxe5 {[%clk 0:02:51]}  Nd5 {[%clk 0:02:23]} 11. Bd2 {[%clk 0:02:47]}  Bf6 {[%clk 0:02:22]} 12. Nc4 {[%clk 0:02:45]}  b5 {[%clk 0:02:17]} 13. Ne3 {[%clk 0:02:45]}  Bb7 {[%clk 0:02:16]} 14. Ng4 {[%clk 0:02:34]}  Be7 {[%clk 0:02:08]} 15. a4 {[%clk 0:02:29]}  a6 {[%clk 0:02:07]} 16. Qb3 {[%clk 0:02:24]}  Qb6 {[%clk 0:02:00]} 17. Ne5 {[%clk 0:02:03]}  Nf6 {[%clk 0:01:59]} 18. Ba5 {[%clk 0:01:45]}  Qa7 {[%clk 0:01:38]} 19. Nc6 {[%clk 0:01:33]}  Bxc6 {[%clk 0:01:37]} 20. Bxc6 {[%clk 0:01:34]}  bxa4 {[%clk 0:00:58]} 21. Qxa4 {[%clk 0:01:34]}  Rab8 {[%clk 0:00:56]} 22. Bc3 {[%clk 0:01:33]}  Rb6 {[%clk 0:00:54]} 23. Bf3 {[%clk 0:01:30]}  Nd5 {[%clk 0:00:51]} 24. Qc4 {[%clk 0:00:49]}  Nxc3 {[%clk 0:00:31]} 25. bxc3 {[%clk 0:00:50]}  Rfb8 {[%clk 0:00:30]} 26. Ra5 {[%clk 0:00:38]}  Rb5 {[%clk 0:00:28]} 27. Ra4 {[%clk 0:00:38]}  g6 {[%clk 0:00:25]} 28. Kg2 {[%clk 0:00:36]}  Qb6 {[%clk 0:00:15]} 29. Rfa1 {[%clk 0:00:35]}  a5 {[%clk 0:00:16]} 30. h4 {[%clk 0:00:34]}  Bf6 {[%clk 0:00:15]} 31. R4a3 {[%clk 0:00:27]}  Kg7 {[%clk 0:00:16]} 32. h5 {[%clk 0:00:27]}  Qc7 {[%clk 0:00:14]} 33. Rh1 {[%clk 0:00:22]}  Qe5 {[%clk 0:00:14]} 34. Qg4 {[%clk 0:00:13]}  Qf5 {[%clk 0:00:12]} 35. Qc4 {[%clk 0:00:11]}  Qe5 {[%clk 0:00:12]} 36. Be4 {[%clk 0:00:10]}  Kg8 {[%clk 0:00:09]} 37. Rh3 {[%clk 0:00:09]}  Qd6 {[%clk 0:00:09]} 38. Ra1 {[%clk 0:00:09]}  Rb3 {[%clk 0:00:08]} 39. Rxa5 {[%clk 0:00:08]}  Rxc3 {[%clk 0:00:08]} 40. Qa4 {[%clk 0:00:07]}  Rcb3 {[%clk 0:00:08]} 41. Ra8 {[%clk 0:00:06]}  Rxa8 {[%clk 0:00:06]} 42. Qxa8+ {[%clk 0:00:07]}  Rb8 {[%clk 0:00:06]} 43. Qa7 {[%clk 0:00:07]}  Bg7 {[%clk 0:00:06]} 44. hxg6 {[%clk 0:00:06]}  hxg6 {[%clk 0:00:07]} 45. Rh1 {[%clk 0:00:05]}  Rd8 {[%clk 0:00:07]} 46. Rc1 {[%clk 0:00:05]}  Rc8 {[%clk 0:00:08]} 47. Qb7 {[%clk 0:00:05]}  Qc7 {[%clk 0:00:07]} 48. Qb5 {[%clk 0:00:05]}  Qd6 {[%clk 0:00:08]} 49. Rc2 {[%clk 0:00:06]}  Bf8 {[%clk 0:00:08]} 50. Ra2 {[%clk 0:00:06]}  Rb8 {[%clk 0:00:08]} 51. Qc4 {[%clk 0:00:06]}  Rb4 {[%clk 0:00:07]} 52. Qc2 {[%clk 0:00:06]}  Qe5 {[%clk 0:00:07]} 53. Ra7 {[%clk 0:00:05]}  Rd4 {[%clk 0:00:06]} 54. Ra8 {[%clk 0:00:05]}  c4 {[%clk 0:00:05]} 55. Rc8 {[%clk 0:00:02]}  cxd3 {[%clk 0:00:05]} 56. exd3 {[%clk 0:00:03]}  Qf6 {[%clk 0:00:05]} 57. Qc7 {[%clk 0:00:02]}  Kg7 {[%clk 0:00:04]} 58. Qb8 {[%clk 0:00:02]}  Qe7 {[%clk 0:00:04]} 59. Re8 {[%clk 0:00:02]}  Qd6 {[%clk 0:00:04]} 60. Qa8 {[%clk 0:00:02]}  Be7 {[%clk 0:00:03]} 61. Rg8+ {[%clk 0:00:02]}  Kf6 {[%clk 0:00:04]} 62. Rh8 {[%clk 0:00:03]}  Kg5 {[%clk 0:00:02]} 63. Qg8 {[%clk 0:00:03]}  Bf6 {[%clk 0:00:02]} 64. Rh7 {[%clk 0:00:03]}  e5 {[%clk 0:00:02]} 65. Qxf7 {[%clk 0:00:03]}  Qe7 {[%clk 0:00:01]} 66. Qxg6# {[%clk 0:00:04]} 1-0


[Site "https://www.chess.com"]